[Event "44th Chess Olympiad Open 2022"]
[Site "Chennai"]
[Date "2022.08.09"]
[Round "11.48"]
[White "Bibby, Simon"]
[Black "Razanadrakotoarisoa, Toavina"]
[Result "0-1"]
[ECO "A45"]
[WhiteElo "2147"]
[BlackElo "2039"]
[Annotator "NA RC"]
[PlyCount "98"]
[EventDate "2022.07.29"]
[EventType "team-tourn"]
[EventCountry "IND"]
[SourceTitle "playchess.com"]
[Source "ChessBase"]
[SourceQuality "1"]
[WhiteTeam "Japan"]
[BlackTeam "Madagascar"]
[WhiteTeamCountry "JPN"]
[BlackTeamCountry "MAD"]
[TimeControl "40/5400+30:1800+30"]

1. d4 {[%emt 0:00:01]} Nf6 {[%emt 0:00:07]} 2. Bg5 {[%emt 0:00:02]} c5 {[%emt 0:02:47]} 3. d5 {[%emt 0:00:04]} Qb6 {[%emt 0:00:53]} 4. Nc3 {[%emt 0:00:06]} d6 {[%emt 0:06:05]} 5. e4 {[%emt 0:00:10]} Nbd7 {[%emt 0:00:19]} 6. Rb1 {[%emt 0:10:03]} g6 {[%emt 0:01:42]} 7. f4 {[%emt 0:00:10]} Bg7 {[%emt 0:00:52]} 8. Bc4 {[%emt 0:01:08]} Qb4 {[%emt 0:07:47]} 9. Bxf6 {[%emt 0:03:18]} Bxf6 {[%emt 0:03:25]} 10. Qd3 {[%emt 0:01:45]} b5 {[%emt 0:03:39]} 11. Bxb5 {[%emt 0:00:29]} Bxc3+ {[%emt 0:00:11]} 12. Qxc3 {[%emt 0:00:09]} Qxe4+ {[%emt 0:00:10]} 13. Ne2 {[%emt 0:02:43]} O-O {[%emt 0:00:35]} 14. Qf3 {[%emt 0:05:47]} Qxc2 {[%emt 0:04:28]} 15. Nc3 {[%emt 0:02:10]} Qf5 {[%emt 0:00:36]} 16. O-O {[%emt 0:08:22]} a6 {[%emt 0:23:16]} 17. Bc6 {[%emt 0:10:42]} Rb8 {[%emt 0:00:19]} 18. Rbe1 {[%emt 0:03:41]} Nf6 {[%emt 0:05:00]} 19. h3 {[%emt 0:01:39]} h5 {[%emt 0:00:43]} 20. b3 {[%emt 0:02:13]} e6 {[%emt 0:12:37]} 21. Ne4 {[%emt 0:00:14]} Nxe4 {[%emt 0:01:17]} 22. Qxe4 {[%emt 0:01:08]} exd5 {[%emt 0:01:57]} 23. Bxd5 {[%emt 0:00:33]} Qf6 {[%emt 0:07:23]} 24. a3 {[%emt 0:03:56]} Bf5 {[%emt 0:00:36]} 25. Qf3 {[%emt 0:00:07]} Rfe8 {[%emt 0:01:20]} 26. Rd1 {[%emt 0:00:24]} h4 {[%emt 0:08:10]} 27. Rf2 {[%emt 0:05:05]} Re7 {[%emt 0:02:27]} 28. Rfd2 {[%emt 0:04:30]} Rbe8 {[%emt 0:00:18]} 29. Qf1 {[%emt 0:01:24]} Qc3 {[%emt 0:00:47]} 30. Qf2 {[%emt 0:01:30]} Qg3 {[%emt 0:04:56]} 31. Qxg3 {[%emt 0:04:25]} hxg3 {[%emt 0:00:01]} 32. Bc4 {[%emt 0:00:05]} Re1+ {[%emt 0:00:10]} 33. Bf1 {[%emt 0:00:01]} R8e3 {[%emt 0:01:34]} 34. Rxd6 {[%emt 0:05:04]} a5 {[%emt 0:00:00]} 35. Rxe1 {[%emt 0:04:03]} Rxe1 {[%emt 0:00:02]} 36. Rd2 {[%emt 0:00:01]} Rb1 {[%emt 0:01:01]} 37. Rd5 {[%emt 0:02:38]} Kg7 {[%emt 0:00:27]} 38. a4 {[%emt 0:00:17]} Kf6 {[%emt 0:00:52]} 39. h4 {[%emt 0:00:17]} Ke6 {[%emt 0:00:38]} 40. Re5+ {[%emt 0:00:28]} Kd6 {[%emt 0:00:22]} 41. Re3 {[%emt 0:30:07]} Bg4 {[%emt 0:30:29]} 42. Rd3+ {[%emt 0:05:17]} Kc6 {[%emt 0:00:00]} 43. Re3 {[%emt 0:00:00]} Kd5 {[%emt 0:00:00]} 44. f5 {[%emt 0:00:00]} gxf5 {[%emt 0:00:00]} 45. Rxg3 {[%emt 0:00:00]} Be2 {[%emt 0:00:00]} 46. Kf2 {[%emt 0:00:00]} Bxf1 {[%emt 0:00:00]} 47. h5 {[%emt 0:00:00]} f4 {[%emt 0:00:00]} 48. Rh3 {[%emt 0:00:00]} Ba6 {[%emt 0:00:00]} 49. h6 {[%emt 0:00:00]} Rf1# {[%emt 0:00:00]} 0-1

[Event "44th Chess Olympiad Open 2022"]
[Site "Chennai"]
[Date "2022.08.09"]
[Round "11.48"]
[White "Andrianiaina, Heritiana"]
[Black "Averbukh, Alex"]
[Result "1/2-1/2"]
[ECO "A30"]
[WhiteElo "2095"]
[BlackElo "2155"]
[Annotator "RC"]
[PlyCount "141"]
[EventDate "2022.07.29"]
[EventType "team-tourn"]
[EventCountry "IND"]
[SourceTitle "playchess.com"]
[Source "ChessBase"]
[SourceQuality "1"]
[WhiteTeam "Madagascar"]
[BlackTeam "Japan"]
[WhiteTeamCountry "MAD"]
[BlackTeamCountry "JPN"]
[TimeControl "40/5400+30:1800+30"]

1. c4 {[%emt 0:00:07]} c5 {[%emt 0:00:22]} 2. Nf3 {[%emt 0:02:16]} g6 {[%emt 0:00:11]} 3. d4 {[%emt 0:03:42]} cxd4 {[%emt 0:00:09]} 4. Nxd4 {[%emt 0:00:52]} Bg7 {[%emt 0:00:13]} 5. g3 {[%emt 0:04:15]} Nc6 {[%emt 0:00:34]} 6. Nb3 {[%emt 0:03:53]} a5 {[%emt 0:01:49]} 7. N3d2 {[%emt 0:01:41]} d5 {[%emt 0:01:30]} 8. cxd5 {[%emt 0:07:35]} Qxd5 {[%emt 0:01:05]} 9. e4 {[%emt 0:00:05]} Qc5 {[%emt 0:02:42]} 10. Na3 {[%emt 0:10:19]} Bd4 {[%emt 0:09:47]} 11. Qe2 {[%emt 0:01:49]} a4 {[%emt 0:02:57]} 12. Bg2 {[%emt 0:00:54]} b6 {[%emt 0:02:16]} 13. O-O {[%emt 0:02:36]} Ba6 {[%emt 0:00:12]} 14. Qd1 {[%emt 0:09:29]} Bxf1 {[%emt 0:00:54]} 15. Qxf1 {[%emt 0:00:07]} Ne5 {[%emt 0:03:41]} 16. Nf3 {[%emt 0:04:42]} Nxf3+ {[%emt 0:02:44]} 17. Bxf3 {[%emt 0:00:03]} e5 {[%emt 0:02:08]} 18. Be2 {[%emt 0:04:06]} h5 {[%emt 0:02:14]} 19. h4 {[%emt 0:02:38]} Nf6 {[%emt 0:03:15]} 20. Nb5 {[%emt 0:00:09]} Kf8 {[%emt 0:05:33]} 21. Nxd4 {[%emt 0:00:39]} exd4 {[%emt 0:01:00]} 22. e5 {[%emt 0:04:34]} Qxe5 {[%emt 0:02:05]} 23. Bf4 {[%emt 0:00:08]} Qe7 {[%emt 0:00:58]} 24. Rc1 {[%emt 0:06:06]} Nd5 {[%emt 0:08:42]} 25. Bg5 {[%emt 0:03:54]} f6 {[%emt 0:02:17]} 26. Bd2 {[%emt 0:00:36]} Kg7 {[%emt 0:00:23]} 27. Bf3 {[%emt 0:00:13]} Rad8 {[%emt 0:04:40]} 28. Qc4 {[%emt 0:06:39]} Qf7 {[%emt 0:04:12]} 29. Qxd4 {[%emt 0:00:51]} Ne7 {[%emt 0:03:35]} 30. Qb4 {[%emt 0:01:21]} Nf5 {[%emt 0:00:55]} 31. Bc3 {[%emt 0:01:11]} Qxa2 {[%emt 0:04:35]} 32. Qxb6 {[%emt 0:00:25]} Rd6 {[%emt 0:00:35]} 33. Qa7+ {[%emt 0:01:09]} Qf7 {[%emt 0:00:43]} 34. Qxa4 {[%emt 0:00:23]} Rhd8 {[%emt 0:01:20]} 35. Re1 {[%emt 0:04:14]} Qc7 {[%emt 0:05:22]} 36. Qf4 {[%emt 0:00:49]} Qa7 {[%emt 0:03:56]} 37. Bxh5 {[%emt 0:03:17]} gxh5 {[%emt 0:10:08]} 38. Qg5+ {[%emt 0:00:24]} Kf8 {[%emt 0:02:50]} 39. Qxf5 {[%emt 0:00:07]} Re8 {[%emt 0:02:29]} 40. Rxe8+ {[%emt 0:00:48]} Kxe8 {[%emt 0:00:02]} 41. Qxh5+ {[%emt 0:30:20]} Qf7 {[%emt 0:30:55]} 42. Qf3 {[%emt 0:04:40]} Qe6 {[%emt 0:02:46]} 43. Kg2 {[%emt 0:00:30]} Kf7 {[%emt 0:00:13]} 44. Qh5+ {[%emt 0:06:42]} Kg7 {[%emt 0:00:26]} 45. Qg5+ {[%emt 0:00:39]} Kf7 {[%emt 0:00:30]} 46. Qf4 {[%emt 0:00:13]} Rd1 {[%emt 0:01:54]} 47. Qf3 {[%emt 0:00:00]} Ra1 {[%emt 0:00:00]} 48. Qb7+ {[%emt 0:00:00]} Qe7 {[%emt 0:00:00]} 49. Qxe7+ {[%emt 0:00:00]} Kxe7 {[%emt 0:00:00]} 50. Kf3 {[%emt 0:00:00]} Ke6 {[%emt 0:00:00]} 51. Kf4 {[%emt 0:00:00]} Ra4+ {[%emt 0:00:00]} 52. Ke3 {[%emt 0:00:00]} Ra1 {[%emt 0:00:00]} 53. f3 {[%emt 0:00:00]} Rh1 {[%emt 0:00:00]} 54. Kf4 {[%emt 0:00:00]} Ra1 {[%emt 0:00:00]} 55. Kg4 {[%emt 0:00:00]} Ra4+ {[%emt 0:00:00]} 56. Kh3 {[%emt 0:00:00]} Ra1 {[%emt 0:00:00]} 57. g4 {[%emt 0:00:00]} Rh1+ {[%emt 0:00:00]} 58. Kg3 {[%emt 0:00:00]} Rg1+ {[%emt 0:00:00]} 59. Kh2 {[%emt 0:00:00]} Rf1 {[%emt 0:00:00]} 60. Kg2 {[%emt 0:00:00]} Ra1 {[%emt 0:00:00]} 61. f4 {[%emt 0:00:00]} Rd1 {[%emt 0:00:00]} 62. f5+ {[%emt 0:00:00]} Kf7 {[%emt 0:00:00]} 63. g5 {[%emt 0:00:00]} fxg5 {[%emt 0:00:00]} 64. hxg5 {[%emt 0:00:00]} Rd5 {[%emt 0:00:00]} 65. g6+ {[%emt 0:00:00]} Kg8 {[%emt 0:00:00]} 66. Kf3 {[%emt 0:00:00]} Rxf5+ {[%emt 0:00:00]} 67. Ke4 {[%emt 0:00:00]} Rg5 {[%emt 0:00:00]} 68. g7 {[%emt 0:00:00]} Kf7 {[%emt 0:00:00]} 69. Bd4 {[%emt 0:00:02]} Ke6 {[%emt 0:00:00]} 70. Kf4 {[%emt 0:00:17]} Rg6 {[%emt 0:00:00]} 71. Ke4 {[%emt 0:00:42]} 1/2-1/2

[Event "44th Chess Olympiad Open 2022"]
[Site "Chennai"]
[Date "2022.08.09"]
[Round "11.48"]
[White "Rakotomaharavo, Dylan"]
[Black "Kobayashi, Atsuhiko"]
[Result "0-1"]
[ECO "B06"]
[WhiteElo "1948"]
[BlackElo "2156"]
[Annotator "RC"]
[PlyCount "126"]
[EventDate "2022.07.29"]
[EventType "team-tourn"]
[EventCountry "IND"]
[SourceTitle "playchess.com"]
[Source "ChessBase"]
[SourceQuality "1"]
[WhiteTeam "Madagascar"]
[BlackTeam "Japan"]
[WhiteTeamCountry "MAD"]
[BlackTeamCountry "JPN"]
[TimeControl "40/5400+30:1800+30"]

1. e4 {[%emt 0:00:03]} g6 {[%emt 0:00:17]} 2. d4 {[%emt 0:00:05]} Bg7 {[%emt 0:00:06]} 3. Nf3 {[%emt 0:00:05]} d6 {[%emt 0:00:30]} 4. Bc4 {[%emt 0:00:05]} a6 {[%emt 0:01:06]} 5. a4 {[%emt 0:00:53]} b6 {[%emt 0:00:06]} 6. O-O {[%emt 0:00:15]} e6 {[%emt 0:00:46]} 7. Nc3 {[%emt 0:00:19]} Ne7 {[%emt 0:00:19]} 8. Be3 {[%emt 0:00:36]} h6 {[%emt 0:00:24]} 9. Qe2 {[%emt 0:00:23]} Nd7 {[%emt 0:02:00]} 10. Rad1 {[%emt 0:00:05]} Bb7 {[%emt 0:00:49]} 11. Nd2 {[%emt 0:00:18]} O-O {[%emt 0:02:18]} 12. f4 {[%emt 0:00:13]} d5 {[%emt 0:02:19]} 13. Ba2 {[%emt 0:00:19]} dxe4 {[%emt 0:01:05]} 14. Ndxe4 {[%emt 0:00:08]} Nd5 {[%emt 0:06:12]} 15. Bc1 {[%emt 0:02:13]} Nxc3 {[%emt 0:02:01]} 16. bxc3 {[%emt 0:02:07]} Nf6 {[%emt 0:02:16]} 17. Ng3 {[%emt 0:00:34]} Qd7 {[%emt 0:04:07]} 18. Bb3 {[%emt 0:00:21]} Bc6 {[%emt 0:00:23]} 19. Ba3 {[%emt 0:03:10]} Rfe8 {[%emt 0:01:32]} 20. a5 {[%emt 0:01:31]} bxa5 {[%emt 0:01:16]} 21. Ra1 {[%emt 0:00:55]} Nd5 {[%emt 0:00:30]} 22. Qd2 {[%emt 0:00:30]} Nxc3 {[%emt 0:00:30]} 23. Bc5 {[%emt 0:00:15]} Na4 {[%emt 0:14:03]} 24. Bxa4 {[%emt 0:00:30]} Bxa4 {[%emt 0:00:30]} 25. Rf2 {[%emt 0:04:50]} Reb8 {[%emt 0:11:55]} 26. Qxa5 {[%emt 0:02:10]} Bc6 {[%emt 0:00:00]} 27. c3 {[%emt 0:01:04]} Rb5 {[%emt 0:00:00]} 28. Qa3 {[%emt 0:00:08]} a5 {[%emt 0:01:17]} 29. Qc1 {[%emt 0:00:17]} a4 {[%emt 0:00:00]} 30. Nf1 {[%emt 0:00:36]} Rxc5 {[%emt 0:02:26]} 31. dxc5 {[%emt 0:00:10]} Qd5 {[%emt 0:00:37]} 32. Qa3 {[%emt 0:02:48]} Bf8 {[%emt 0:03:31]} 33. Ne3 {[%emt 0:00:06]} Qxc5 {[%emt 0:00:36]} 34. Qxc5 {[%emt 0:00:05]} Bxc5 {[%emt 0:00:05]} 35. Re2 {[%emt 0:00:08]} Rd8 {[%emt 0:07:35]} 36. Kh1 {[%emt 0:00:35]} Bd6 {[%emt 0:07:42]} 37. Rd2 {[%emt 0:03:27]} Rb8 {[%emt 0:01:39]} 38. Rd4 {[%emt 0:00:17]} a3 {[%emt 0:01:46]} 39. h3 {[%emt 0:00:55]} Rb3 {[%emt 0:00:44]} 40. Nc4 {[%emt 0:01:08]} Rxc3 {[%emt 0:04:01]} 41. Nxd6 {[%emt 0:30:08]} cxd6 {[%emt 0:30:06]} 42. Rxd6 {[%emt 0:00:23]} Bd5 {[%emt 0:00:10]} 43. Kh2 {[%emt 0:01:15]} Kf8 {[%emt 0:05:31]} 44. Ra6 {[%emt 0:00:17]} Rc2 {[%emt 0:01:30]} 45. R6xa3 {[%emt 0:00:07]} Rxg2+ {[%emt 0:00:09]} 46. Kh1 {[%emt 0:00:11]} Rf2+ {[%emt 0:00:48]} 47. Kg1 {[%emt 0:00:07]} Rxf4 {[%emt 0:00:06]} 48. Rc1 {[%emt 0:01:26]} Kg7 {[%emt 0:03:28]} 49. Rcc3 {[%emt 0:00:16]} g5 {[%emt 0:00:22]} 50. Rd3 {[%emt 0:00:24]} h5 {[%emt 0:00:32]} 51. Re3 {[%emt 0:00:18]} Kf6 {[%emt 0:00:45]} 52. Rac3 {[%emt 0:00:11]} Rb4 {[%emt 0:01:03]} 53. Re2 {[%emt 0:00:12]} g4 {[%emt 0:00:29]} 54. Kh2 {[%emt 0:00:17]} Kg5 {[%emt 0:00:48]} 55. hxg4 {[%emt 0:00:23]} hxg4 {[%emt 0:00:17]} 56. Rf2 {[%emt 0:01:31]} f5 {[%emt 0:00:07]} 57. Rc8 {[%emt 0:00:09]} Bf3 {[%emt 0:01:23]} 58. Rc1 {[%emt 0:00:24]} e5 {[%emt 0:00:20]} 59. Kg1 {[%emt 0:00:12]} Kf4 {[%emt 0:00:13]} 60. Rcf1 {[%emt 0:01:01]} e4 {[%emt 0:00:13]} 61. Rh2 {[%emt 0:00:29]} Rd4 {[%emt 0:00:44]} 62. Rhf2 {[%emt 0:00:23]} e3 {[%emt 0:00:15]} 63. Rh2 {[%emt 0:00:22]} Rd2 {[%emt 0:00:27]} 0-1

[Event "44th Chess Olympiad Open 2022"]
[Site "Chennai"]
[Date "2022.08.09"]
[Round "11.49"]
[White "Al Qudaimi, Basheer"]
[Black "Alfaro, William"]
[Result "1-0"]
[ECO "B31"]
[WhiteElo "2424"]
[BlackElo "2155"]
[Annotator "RC"]
[PlyCount "65"]
[EventDate "2022.07.29"]
[EventType "team-tourn"]
[EventCountry "IND"]
[SourceTitle "playchess.com"]
[Source "ChessBase"]
[SourceQuality "1"]
[WhiteTeam "Yemen"]
[BlackTeam "Nicaragua"]
[WhiteTeamCountry "YEM"]
[BlackTeamCountry "NCA"]
[TimeControl "40/5400+30:1800+30"]

1. e4 {[%emt 0:00:04]} c5 {[%emt 0:03:18]} 2. Nf3 {[%emt 0:00:13]} Nc6 {[%emt 0:00:27]} 3. Bb5 {[%emt 0:00:22]} g6 {[%emt 0:00:09]} 4. O-O {[%emt 0:00:39]} Bg7 {[%emt 0:00:04]} 5. Re1 {[%emt 0:00:19]} Nf6 {[%emt 0:00:06]} 6. c3 {[%emt 0:03:48]} O-O {[%emt 0:00:06]} 7. h3 {[%emt 0:02:15]} Qb6 {[%emt 0:16:58]} 8. Na3 {[%emt 0:04:08]} a6 {[%emt 0:00:55]} 9. Ba4 {[%emt 0:04:53]} Qc7 {[%emt 0:04:16]} 10. e5 {[%emt 0:05:59]} Nh5 {[%emt 0:01:07]} 11. d4 {[%emt 0:00:10]} d6 {[%emt 0:00:06]} 12. Bxc6 {[%emt 0:05:41]} bxc6 {[%emt 0:04:12]} 13. g4 {[%emt 0:00:51]} dxe5 {[%emt 0:00:34]} 14. dxe5 {[%emt 0:01:38]} f6 {[%emt 0:00:24]} 15. gxh5 {[%emt 0:00:34]} Bxh3 {[%emt 0:01:58]} 16. hxg6 {[%emt 0:00:42]} Rad8 {[%emt 0:04:15]} 17. Qb3+ {[%emt 0:01:01]} Kh8 {[%emt 0:00:49]} 18. Qa4 {[%emt 0:01:35]} Qd7 {[%emt 0:06:42]} 19. Qh4 {[%emt 0:11:32]} Qg4+ {[%emt 0:04:12]} 20. Qxg4 {[%emt 0:00:50]} Bxg4 {[%emt 0:00:01]} 21. Nh2 {[%emt 0:00:10]} Bf5 {[%emt 0:00:02]} 22. Be3 {[%emt 0:01:34]} fxe5 {[%emt 0:00:18]} 23. Bxc5 {[%emt 0:00:32]} Rf6 {[%emt 0:01:10]} 24. gxh7 {[%emt 0:04:55]} Bh6 {[%emt 0:29:11]} 25. Nc4 {[%emt 0:08:41]} Bh3 {[%emt 0:14:52]} 26. Nf1 {[%emt 0:02:01]} Bf4 {[%emt 0:02:29]} 27. Ng3 {[%emt 0:01:01]} Re8 {[%emt 0:04:46]} 28. Nxe5 {[%emt 0:00:16]} Kxh7 {[%emt 0:00:01]} 29. Rad1 {[%emt 0:02:20]} Be6 {[%emt 0:00:18]} 30. c4 {[%emt 0:02:38]} Rg8 {[%emt 0:00:09]} 31. Rd3 {[%emt 0:02:51]} Rf5 {[%emt 0:01:22]} 32. Bd4 {[%emt 0:06:35]} Rgg5 {[%emt 0:00:10]} 33. Nf3 {[%emt 0:00:47]} 1-0

[Event "44th Chess Olympiad Open 2022"]
[Site "Chennai"]
[Date "2022.08.09"]
[Round "11.49"]
[White "Al-Aqrabi, Saleh"]
[Black "Salazar Cabezas, Alberto Javier"]
[Result "1-0"]
[ECO "D00"]
[WhiteElo "2172"]
[BlackElo "2155"]
[Annotator "RC"]
[PlyCount "75"]
[EventDate "2022.07.29"]
[EventType "team-tourn"]
[EventCountry "IND"]
[SourceTitle "playchess.com"]
[Source "ChessBase"]
[SourceQuality "1"]
[WhiteTeam "Yemen"]
[BlackTeam "Nicaragua"]
[WhiteTeamCountry "YEM"]
[BlackTeamCountry "NCA"]
[TimeControl "40/5400+30:1800+30"]

1. d4 {[%emt 0:00:03]} Nf6 {[%emt 0:00:15]} 2. Bf4 {[%emt 0:00:05]} d5 {[%emt 0:00:06]} 3. e3 {[%emt 0:00:04]} c5 {[%emt 0:00:05]} 4. c3 {[%emt 0:00:13]} Nc6 {[%emt 0:00:05]} 5. Nd2 {[%emt 0:00:04]} Bf5 {[%emt 0:00:08]} 6. Be2 {[%emt 0:00:22]} Qb6 {[%emt 0:00:36]} 7. Qb3 {[%emt 0:00:03]} c4 {[%emt 0:00:17]} 8. Qxb6 {[%emt 0:00:07]} axb6 {[%emt 0:00:03]} 9. a3 {[%emt 0:00:15]} b5 {[%emt 0:00:11]} 10. Rc1 {[%emt 0:00:02]} e6 {[%emt 0:00:34]} 11. h3 {[%emt 0:00:04]} Be7 {[%emt 0:01:28]} 12. Ngf3 {[%emt 0:00:10]} Nd7 {[%emt 0:00:18]} 13. O-O {[%emt 0:00:14]} h6 {[%emt 0:01:55]} 14. Rfe1 {[%emt 0:00:03]} g5 {[%emt 0:01:56]} 15. Bg3 {[%emt 0:00:24]} Bg6 {[%emt 0:06:39]} 16. Bd1 {[%emt 0:04:49]} Nb6 {[%emt 0:05:44]} 17. e4 {[%emt 0:00:52]} O-O-O {[%emt 0:01:44]} 18. exd5 {[%emt 0:05:26]} Rxd5 {[%emt 0:04:25]} 19. Ne5 {[%emt 0:01:10]} Nxe5 {[%emt 0:02:35]} 20. Bxe5 {[%emt 0:00:18]} f6 {[%emt 0:07:03]} 21. Bh2 {[%emt 0:00:19]} Bf7 {[%emt 0:01:22]} 22. Bg4 {[%emt 0:02:53]} f5 {[%emt 0:00:28]} 23. Bf3 {[%emt 0:00:03]} Rd7 {[%emt 0:03:15]} 24. Re5 {[%emt 0:01:42]} Nd5 {[%emt 0:07:20]} 25. Bxd5 {[%emt 0:00:36]} Rxd5 {[%emt 0:00:18]} 26. Rce1 {[%emt 0:04:46]} Rhd8 {[%emt 0:03:25]} 27. a4 {[%emt 0:01:33]} Bf6 {[%emt 0:06:42]} 28. R5e2 {[%emt 0:07:21]} Kd7 {[%emt 0:02:46]} 29. axb5 {[%emt 0:00:26]} Rc8 {[%emt 0:00:13]} 30. Be5 {[%emt 0:00:56]} Be7 {[%emt 0:04:29]} 31. b3 {[%emt 0:02:26]} Rxb5 {[%emt 0:01:31]} 32. bxc4 {[%emt 0:00:28]} Rb2 {[%emt 0:01:50]} 33. c5 {[%emt 0:00:47]} Ra8 {[%emt 0:02:24]} 34. Nc4 {[%emt 0:00:38]} Rxe2 {[%emt 0:00:03]} 35. Rxe2 {[%emt 0:00:09]} Ra1+ {[%emt 0:00:09]} 36. Kh2 {[%emt 0:00:30]} Rc1 {[%emt 0:05:38]} 37. Rb2 {[%emt 0:00:29]} Kc8 {[%emt 0:02:10]} 38. c6 {[%emt 0:00:24]} 1-0

[Event "44th Chess Olympiad Open 2022"]
[Site "Chennai"]
[Date "2022.08.09"]
[Round "11.49"]
[White "Rocha, Maximiliano"]
[Black "Al-Zendani, Zendan"]
[Result "1/2-1/2"]
[ECO "D37"]
[WhiteElo "2117"]
[BlackElo "2284"]
[Annotator "RC"]
[PlyCount "49"]
[EventDate "2022.07.29"]
[EventType "team-tourn"]
[EventCountry "IND"]
[SourceTitle "playchess.com"]
[Source "ChessBase"]
[SourceQuality "1"]
[WhiteTeam "Nicaragua"]
[BlackTeam "Yemen"]
[WhiteTeamCountry "NCA"]
[BlackTeamCountry "YEM"]
[TimeControl "40/5400+30:1800+30"]

1. d4 {[%emt 0:00:14]} Nf6 {[%emt 0:00:17]} 2. c4 {[%emt 0:00:06]} e6 {[%emt 0:00:05]} 3. Nf3 {[%emt 0:00:31]} d5 {[%emt 0:00:48]} 4. Nc3 {[%emt 0:01:35]} Be7 {[%emt 0:00:46]} 5. Bf4 {[%emt 0:00:48]} O-O {[%emt 0:01:09]} 6. e3 {[%emt 0:00:05]} b6 {[%emt 0:12:30]} 7. cxd5 {[%emt 0:00:48]} Nxd5 {[%emt 0:01:24]} 8. Bg3 {[%emt 0:00:33]} Bb7 {[%emt 0:10:22]} 9. Bd3 {[%emt 0:00:07]} c5 {[%emt 0:05:20]} 10. O-O {[%emt 0:03:25]} cxd4 {[%emt 0:00:41]} 11. exd4 {[%emt 0:00:08]} Nd7 {[%emt 0:05:58]} 12. Qe2 {[%emt 0:02:34]} N7f6 {[%emt 0:00:32]} 13. Rfd1 {[%emt 0:03:34]} Rc8 {[%emt 0:03:51]} 14. Rac1 {[%emt 0:14:28]} Nh5 {[%emt 0:09:17]} 15. Bb1 {[%emt 0:10:49]} Nxg3 {[%emt 0:03:33]} 16. hxg3 {[%emt 0:00:02]} Nxc3 {[%emt 0:06:16]} 17. bxc3 {[%emt 0:05:17]} Ba3 {[%emt 0:06:08]} 18. Rc2 {[%emt 0:00:05]} g6 {[%emt 0:05:21]} 19. Qe3 {[%emt 0:03:29]} Be7 {[%emt 0:01:21]} 20. Rcc1 {[%emt 0:05:09]} Ba3 {[%emt 0:03:14]} 21. Rc2 {[%emt 0:00:05]} Be7 {[%emt 0:00:13]} 22. Rcc1 {[%emt 0:00:04]} Ba3 {[%emt 0:00:06]} 23. Rc2 {[%emt 0:00:05]} Be7 {[%emt 0:00:03]} 24. Rcc1 {[%emt 0:00:16]} Ba3 {[%emt 0:00:06]} 25. Rc2 {[%emt 0:03:32]} 1/2-1/2

[Event "44th Chess Olympiad Open 2022"]
[Site "Chennai"]
[Date "2022.08.09"]
[Round "11.49"]
[White "Espinoza Solano, Jose Nahum"]
[Black "Al-Subaihi, Khalil"]
[Result "1-0"]
[ECO "B01"]
[WhiteElo "2093"]
[BlackElo "2141"]
[Annotator "NA RC"]
[PlyCount "77"]
[EventDate "2022.07.29"]
[EventType "team-tourn"]
[EventCountry "IND"]
[SourceTitle "playchess.com"]
[Source "ChessBase"]
[SourceQuality "1"]
[WhiteTeam "Nicaragua"]
[BlackTeam "Yemen"]
[WhiteTeamCountry "NCA"]
[BlackTeamCountry "YEM"]
[TimeControl "40/5400+30:1800+30"]

1. e4 {[%emt 0:01:06]} d5 {[%emt 0:00:05]} 2. exd5 {[%emt 0:00:16]} Nf6 {[%emt 0:00:04]} 3. d4 {[%emt 0:00:05]} Nxd5 {[%emt 0:00:05]} 4. c4 {[%emt 0:00:19]} Nb6 {[%emt 0:00:04]} 5. Nc3 {[%emt 0:00:04]} e5 {[%emt 0:02:30]} 6. d5 {[%emt 0:06:18]} Bc5 {[%emt 0:00:22]} 7. Nf3 {[%emt 0:00:34]} Bg4 {[%emt 0:03:18]} 8. h3 {[%emt 0:00:14]} Bxf3 {[%emt 0:00:57]} 9. Qxf3 {[%emt 0:00:17]} O-O {[%emt 0:00:10]} 10. Be3 {[%emt 0:04:45]} Bxe3 {[%emt 0:01:54]} 11. Qxe3 {[%emt 0:00:09]} f5 {[%emt 0:00:27]} 12. O-O-O {[%emt 0:00:42]} Qe7 {[%emt 0:13:02]} 13. f4 {[%emt 0:01:11]} N8d7 {[%emt 0:07:14]} 14. g4 {[%emt 0:04:49]} fxg4 {[%emt 0:11:29]} 15. hxg4 {[%emt 0:00:11]} Rxf4 {[%emt 0:00:22]} 16. Bd3 {[%emt 0:00:23]} g6 {[%emt 0:00:36]} 17. Ne4 {[%emt 0:05:38]} Nf6 {[%emt 0:06:59]} 18. Nxf6+ {[%emt 0:07:40]} Qxf6 {[%emt 0:03:39]} 19. Kb1 {[%emt 0:01:32]} Nxc4 {[%emt 0:10:22]} 20. Qc1 {[%emt 0:00:58]} Nb6 {[%emt 0:06:31]} 21. Qxc7 {[%emt 0:00:27]} Qg7 {[%emt 0:00:07]} 22. Qd6 {[%emt 0:01:06]} Qf6 {[%emt 0:22:15]} 23. Qxf6 {[%emt 0:00:31]} Rxf6 {[%emt 0:00:01]} 24. Rhe1 {[%emt 0:00:06]} Rd6 {[%emt 0:04:24]} 25. Rxe5 {[%emt 0:00:20]} Rad8 {[%emt 0:00:15]} 26. b3 {[%emt 0:00:26]} a6 {[%emt 0:03:12]} 27. g5 {[%emt 0:00:52]} R8d7 {[%emt 0:00:46]} 28. a4 {[%emt 0:03:20]} Kg7 {[%emt 0:01:00]} 29. Be4 {[%emt 0:01:55]} Nc8 {[%emt 0:01:46]} 30. Kb2 {[%emt 0:01:10]} Re7 {[%emt 0:00:20]} 31. Rxe7+ {[%emt 0:00:18]} Nxe7 {[%emt 0:00:01]} 32. Kc3 {[%emt 0:00:06]} h6 {[%emt 0:00:55]} 33. gxh6+ {[%emt 0:00:18]} Kxh6 {[%emt 0:00:11]} 34. Kd4 {[%emt 0:00:11]} Kg7 {[%emt 0:01:03]} 35. Ke5 {[%emt 0:00:19]} Rd8 {[%emt 0:00:12]} 36. d6 {[%emt 0:01:01]} Nc6+ {[%emt 0:01:14]} 37. Bxc6 {[%emt 0:00:08]} bxc6 {[%emt 0:00:01]} 38. d7 {[%emt 0:00:11]} g5 {[%emt 0:01:03]} 39. Ke4 {[%emt 0:01:05]} 1-0